[Event "32nd NATO Chess Championship"]
[Site "Tartu, Estonia"]
[Date "2022.06.27"]
[Round "1.24"]
[White "Flaata, Alexander R."]
[Black "Echavarria Hidalgo, Fernando"]
[Result "1-0"]
[TimeControl "90 min + 30 sec increment from move one"]
[WhiteFideId "1502026"]
[BlackFideId "2617528"]
[WhiteElo "2048"]
[BlackElo "1749"]

1. d4 {[%clk 01:30:56]} {[%emt 00:00:02]} Nf6 {[%clk 01:30:48]} {[%emt
00:00:14]} 2. Nc3 {[%clk 01:31:04]} {[%emt 00:00:21]} d5 {[%clk 01:30:16]}
{[%emt 00:01:02]} 3. Bf4 {[%clk 01:31:07]} {[%emt 00:00:27]} c6 {[%clk
01:29:01]} {[%emt 00:01:46]} 4. e3 {[%clk 01:29:23]} {[%emt 00:02:12]} Bf5
{[%clk 01:28:38]} {[%emt 00:00:54]} 5. f3 {[%clk 01:27:16]} {[%emt 00:02:37]}
h6 {[%clk 01:28:32]} {[%emt 00:00:37]} 6. g4 {[%clk 01:26:56]} {[%emt
00:00:49]} Bh7 {[%clk 01:28:37]} {[%emt 00:00:24]} 7. Bd3 {[%clk 01:27:16]}
{[%emt 00:00:11]} Bxd3 {[%clk 01:28:27]} {[%emt 00:00:40]} 8. Qxd3 {[%clk
01:27:37]} {[%emt 00:00:09]} e6 {[%clk 01:28:28]} {[%emt 00:00:29]} 9. Nge2
{[%clk 01:27:06]} {[%emt 00:01:00]} Bd6 {[%clk 01:28:17]} {[%emt 00:00:42]} 10.
h4 {[%clk 01:26:10]} {[%emt 00:01:27]} Bxf4 {[%clk 01:27:22]} {[%emt 00:01:25]}
11. Nxf4 {[%emt 00:03:56]} Qd6 {[%clk 01:24:20]} {[%emt 00:00:34]} 12. O-O-O
{[%clk 01:22:55]} {[%emt 00:03:15]} Na6 {[%clk 01:16:20]} {[%emt 00:08:30]} 13.
g5 {[%clk 01:22:14]} {[%emt 00:01:10]} Nd7 {[%clk 01:14:43]} {[%emt 00:02:07]}
14. g6 {[%clk 01:17:49]} {[%emt 00:04:56]} f6 {[%clk 01:10:46]} {[%emt
00:04:27]} 15. Nh5 {[%clk 01:17:30]} {[%emt 00:00:49]} Qe7 {[%clk 01:06:37]}
{[%emt 00:04:38]} 16. e4 {[%clk 01:15:46]} {[%emt 00:02:14]} Nb4 {[%clk
01:02:04]} {[%emt 00:05:04]} 17. Qe3 {[%clk 01:15:21]} {[%emt 00:00:52]} dxe4
{[%clk 00:54:40]} {[%emt 00:07:56]} 18. fxe4 {[%clk 01:11:40]} {[%emt
00:04:12]} O-O-O {[%clk 00:45:21]} {[%emt 00:09:48]} 19. a3 {[%clk 01:02:53]}
{[%emt 00:09:18]} Na6 {[%clk 00:44:47]} {[%emt 00:01:04]} 20. d5 {[%clk
01:02:42]} {[%emt 00:00:41]} Nb6 {[%clk 00:41:38]} {[%emt 00:03:39]} 21. dxc6
{[%clk 00:58:30]} {[%emt 00:04:42]} Rxd1+ {[%clk 00:40:17]} {[%emt 00:01:50]}
22. Rxd1 {[%clk 00:58:03]} {[%emt 00:00:56]} bxc6 {[%clk 00:40:34]} {[%emt
00:00:14]} 23. Qd4 {[%clk 00:54:03]} {[%emt 00:04:28]} Kc7 {[%clk 00:35:31]}
{[%emt 00:05:35]} 24. e5 {[%clk 00:46:39]} {[%emt 00:07:54]} fxe5 {[%clk
00:25:58]} {[%emt 00:10:02]} 25. Qxe5+ {[%clk 00:46:48]} {[%emt 00:00:21]} Kb7
{[%clk 00:25:15]} {[%emt 00:01:14]} 26. Ne4 {[%clk 00:42:56]} {[%emt 00:04:22]}
Nc8 {[%clk 00:17:33]} {[%emt 00:08:13]} 27. Qxg7 {[%clk 00:40:11]} {[%emt
00:03:14]} Qxg7 {[%clk 00:15:18]} {[%emt 00:02:45]} 28. Nxg7 {[%clk 00:40:29]}
{[%emt 00:00:12]} e5 {[%clk 00:11:44]} {[%emt 00:04:05]} 29. Ne6 {[%clk
00:39:36]} {[%emt 00:01:20]} Rg8 {[%clk 00:10:33]} {[%emt 00:01:42]} 30. g7
{[%clk 00:39:50]} {[%emt 00:00:16]} Kb6 {[%clk 00:08:46]} {[%emt 00:02:18]} 31.
Nf6 {[%clk 00:39:43]} {[%emt 00:00:36]} 1-0

[Event "32nd NATO Chess Championship"]
[Site "Tartu, Estonia"]
[Date "2022.06.27"]
[Round "1.25"]
[White "Charles, Freddy"]
[Black "Tustanowski, Mateusz"]
[Result "0-1"]
[TimeControl "90 min + 30 sec increment from move one"]
[WhiteFideId "1742"]
[BlackFideId "1169866"]
[WhiteElo "1742"]
[BlackElo "2036"]

1. d4 {[%clk 01:30:52]} {[%emt 00:00:07]} Nf6 {[%clk 01:30:23]} {[%emt
00:00:37]} 2. Bf4 {[%clk 01:31:14]} {[%emt 00:00:08]} d5 {[%clk 01:29:11]}
{[%emt 00:01:41]} 3. e3 {[%clk 01:31:19]} {[%emt 00:00:26]} c5 {[%clk
01:23:13]} {[%emt 00:06:28]} 4. c3 {[%clk 01:31:41]} {[%emt 00:00:08]} Qb6
{[%clk 01:21:24]} {[%emt 00:02:18]} 5. Qb3 {[%clk 01:31:51]} {[%emt 00:00:19]}
c4 {[%clk 01:15:30]} {[%emt 00:06:25]} 6. Qc2 {[%clk 01:29:59]} {[%emt
00:02:22]} g6 {[%clk 01:13:20]} {[%emt 00:02:40]} 7. Nd2 {[%clk 01:30:18]}
{[%emt 00:00:12]} Bf5 {[%clk 01:13:09]} {[%emt 00:00:40]} 8. e4 {[%clk
01:29:31]} {[%emt 00:01:17]} Nxe4 {[%clk 01:11:24]} {[%emt 00:02:14]} 9. Nxe4
{[%clk 01:25:47]} {[%emt 00:04:15]} Bxe4 {[%clk 01:11:31]} {[%emt 00:00:23]} 10.
Qd2 {[%clk 01:25:49]} {[%emt 00:00:28]} h5 {[%clk 01:07:22]} {[%emt 00:04:38]}
11. h3 {[%clk 01:20:15]} {[%emt 00:06:05]} Nc6 {[%clk 01:04:32]} {[%emt
00:03:20]} 12. Ne2 {[%clk 01:18:39]} {[%emt 00:02:06]} h4 {[%clk 01:01:12]}
{[%emt 00:03:49]} 13. f3 {[%clk 01:13:00]} {[%emt 00:06:10]} Bd3 {[%clk
00:56:57]} {[%emt 00:04:45]} 14. Be3 {[%clk 01:12:58]} {[%emt 00:00:32]} O-O-O
{[%clk 00:52:50]} {[%emt 00:04:37]} 15. Kf2 {[%clk 01:08:42]} {[%emt 00:04:46]}
Qc7 {[%clk 00:33:57]} {[%emt 00:19:22]} 16. Nf4 {[%clk 00:59:57]} {[%emt
00:09:14]} Bxf1 {[%clk 00:33:31]} {[%emt 00:00:56]} 17. Rhxf1 {[%clk 01:00:15]}
{[%emt 00:00:12]} e5 {[%clk 00:28:23]} {[%emt 00:05:38]} 18. Ne2 {[%clk
00:59:24]} {[%emt 00:01:21]} exd4 {[%clk 00:25:27]} {[%emt 00:03:26]} 19. Bxd4
{[%clk 00:56:05]} {[%emt 00:03:49]} Nxd4 {[%clk 00:25:23]} {[%emt 00:00:34]} 20.
Qxd4 {[%clk 00:56:51]} {[%emt 00:00:14]} Bc5 {[%clk 00:26:15]} {[%emt
00:00:08]} 0-1

[Event "32nd NATO Chess Championship"]
[Site "Tartu, Estonia"]
[Date "2022.06.27"]
[Round "1.26"]
[White "Schott, Guido"]
[Black "Smit, Jan"]
[Result "1/2-1/2"]
[TimeControl "90 min + 30 sec increment from move one"]
[WhiteFideId "4646746"]
[BlackFideId "1052047"]
[WhiteElo "2028"]
[BlackElo "1741"]

1. e4 {[%clk 01:30:44]} {[%emt 00:00:15]} g6 {[%clk 01:30:23]} {[%emt
00:00:38]} 2. d4 {[%clk 01:30:52]} {[%emt 00:00:23]} d6 {[%clk 01:30:31]}
{[%emt 00:00:21]} 3. Nf3 {[%clk 01:28:50]} {[%emt 00:02:31]} Bg7 {[%clk
01:30:36]} {[%emt 00:00:25]} 4. Nc3 {[%clk 01:28:49]} {[%emt 00:00:32]} Nf6
{[%clk 01:30:01]} {[%emt 00:01:04]} 5. h3 {[%clk 01:28:40]} {[%emt 00:00:38]}
O-O {[%clk 01:29:40]} {[%emt 00:00:52]} 6. Be3 {[%clk 01:28:49]} {[%emt
00:00:21]} c6 {[%clk 01:29:34]} {[%emt 00:00:36]} 7. Qd2 {[%clk 01:28:28]}
{[%emt 00:00:51]} Qc7 {[%clk 01:25:45]} {[%emt 00:04:19]} 8. Bh6 {[%clk
01:26:51]} {[%emt 00:02:07]} e5 {[%emt 00:05:33]} 9. O-O-O {[%clk 01:19:28]}
{[%emt 00:06:31]} b5 {[%clk 01:14:48]} {[%emt 00:07:47]} 10. Bd3 {[%clk
01:12:10]} {[%emt 00:07:47]} a5 {[%clk 01:10:19]} {[%emt 00:04:59]} 11. Bxg7
{[%clk 01:11:07]} {[%emt 00:01:33]} Kxg7 {[%clk 01:10:46]} {[%emt 00:00:03]} 12.
dxe5 {[%clk 01:10:54]} {[%emt 00:00:42]} dxe5 {[%clk 01:10:49]} {[%emt
00:00:27]} 13. Nh4 {[%clk 01:10:54]} {[%emt 00:00:29]} Qe7 {[%emt 00:46:46]} 14.
f4 {[%clk 00:41:58]} {[%emt 00:15:13]} Nh5 {[%clk 00:35:09]} {[%emt 00:04:09]}
15. fxe5 {[%clk 00:38:37]} {[%emt 00:03:51]} Qxh4 {[%clk 00:20:36]} {[%emt
00:15:02]} 16. g4 {[%clk 00:38:01]} {[%emt 00:01:05]} Be6 {[%clk 00:19:34]}
{[%emt 00:01:33]} 17. gxh5 {[%clk 00:35:39]} {[%emt 00:02:53]} Qxh5 {[%clk
00:19:51]} {[%emt 00:00:13]} 18. Kb1 {[%clk 00:29:32]} {[%emt 00:06:37]} Nd7
{[%emt 00:01:45]} 1/2-1/2

[Event "32nd NATO Chess Championship"]
[Site "Tartu, Estonia"]
[Date "2022.06.27"]
[Round "1.27"]
[White "Voroblievas, Arturas"]
[Black "Jacob, Tobias"]
[Result "0-1"]
[TimeControl "90 min + 30 sec increment from move one"]
[WhiteFideId "12803430"]
[BlackFideId "12903221"]
[WhiteElo "1740"]
[BlackElo "2013"]

1. e4 {[%clk 01:30:57]} {[%emt 00:00:02]} c5 {[%clk 01:30:38]} {[%emt
00:00:22]} 2. Nf3 {[%clk 01:31:19]} {[%emt 00:00:08]} d6 {[%clk 01:30:54]}
{[%emt 00:00:14]} 3. d4 {[%clk 01:31:42]} {[%emt 00:00:07]} cxd4 {[%clk
01:31:01]} {[%emt 00:00:24]} 4. Nxd4 {[%clk 01:31:58]} {[%emt 00:00:13]} Nf6
{[%clk 01:31:18]} {[%emt 00:00:13]} 5. Nc3 {[%clk 01:32:17]} {[%emt 00:00:11]}
a6 {[%clk 01:31:35]} {[%emt 00:00:14]} 6. Bg5 {[%clk 01:32:15]} {[%emt
00:00:30]} Nbd7 {[%clk 01:31:46]} {[%emt 00:00:19]} 7. Bc4 {[%clk 01:31:11]}
{[%emt 00:01:34]} e6 {[%clk 01:30:22]} {[%emt 00:01:55]} 8. f4 {[%clk
01:27:12]} {[%emt 00:04:28]} b5 {[%clk 01:30:04]} {[%emt 00:00:48]} 9. Bb3
{[%clk 01:26:30]} {[%emt 00:01:13]} Qc7 {[%clk 01:28:16]} {[%emt 00:02:19]} 10.
a3 {[%emt 00:06:04]} Nc5 {[%clk 01:21:48]} {[%emt 00:03:05]} 11. Bxf6 {[%clk
01:23:16]} {[%emt 00:02:02]} Nxb3 {[%clk 01:20:52]} {[%emt 00:01:27]} 12. Nxb3
{[%clk 01:21:38]} {[%emt 00:02:08]} gxf6 {[%clk 01:21:11]} {[%emt 00:00:11]} 13.
Qh5 {[%clk 01:19:54]} {[%emt 00:02:14]} Bb7 {[%clk 01:15:29]} {[%emt 00:06:12]}
14. O-O-O {[%clk 01:19:57]} {[%emt 00:00:26]} O-O-O {[%clk 01:04:42]} {[%emt
00:11:18]} 15. Rd3 {[%clk 01:11:51]} {[%emt 00:08:36]} Kb8 {[%clk 00:37:17]}
{[%emt 00:27:56]} 16. Rhd1 {[%emt 00:11:31]} d5 {[%clk 00:26:23]} {[%emt
00:03:11]} 17. g3 {[%clk 01:06:21]} {[%emt 00:03:10]} Rc8 {[%clk 00:21:41]}
{[%emt 00:05:13]} 18. Kb1 {[%clk 01:06:13]} {[%emt 00:00:38]} b4 {[%clk
00:12:33]} {[%emt 00:09:40]} 19. axb4 {[%clk 01:06:22]} {[%emt 00:00:20]} Bxb4
{[%clk 00:12:58]} {[%emt 00:00:05]} 20. Qe2 {[%clk 00:54:16]} {[%emt 00:12:34]}
Qb6 {[%clk 00:10:52]} {[%emt 00:02:37]} 21. exd5 {[%clk 00:43:55]} {[%emt
00:10:51]} Bxc3 {[%clk 00:11:09]} {[%emt 00:00:13]} 22. Rxc3 {[%clk 00:41:10]}
{[%emt 00:03:14]} Rxc3 {[%clk 00:11:32]} {[%emt 00:00:08]} 23. bxc3 {[%clk
00:41:31]} {[%emt 00:00:08]} Bxd5 {[%clk 00:11:57]} {[%emt 00:00:07]} 24. c4
{[%clk 00:41:41]} {[%emt 00:00:15]} Bc6 {[%clk 00:11:58]} {[%emt 00:00:33]} 25.
Qd3 {[%clk 00:39:17]} {[%emt 00:02:53]} Kc8 {[%clk 00:11:34]} {[%emt 00:00:56]}
26. c5 {[%clk 00:38:33]} {[%emt 00:01:14]} Qb5 {[%clk 00:09:50]} {[%emt
00:02:14]} 27. Qxb5 {[%clk 00:34:14]} {[%emt 00:04:50]} Bxb5 {[%clk 00:09:55]}
{[%emt 00:00:25]} 28. Rd6 {[%clk 00:32:53]} {[%emt 00:01:50]} h5 {[%clk
00:09:44]} {[%emt 00:00:42]} 29. Nd4 {[%clk 00:32:54]} {[%emt 00:00:28]} Bc4
{[%clk 00:09:49]} {[%emt 00:00:25]} 30. Kb2 {[%clk 00:31:34]} {[%emt 00:01:49]}
h4 {[%clk 00:09:57]} {[%emt 00:00:22]} 31. Kc3 {[%clk 00:31:16]} {[%emt
00:00:48]} hxg3 {[%clk 00:09:47]} {[%emt 00:00:40]} 32. hxg3 {[%clk 00:31:33]}
{[%emt 00:00:12]} Bf1 {[%clk 00:09:48]} {[%emt 00:00:30]} 33. Kb4 {[%clk
00:27:40]} {[%emt 00:04:24]} Rg8 {[%clk 00:04:58]} {[%emt 00:05:18]} 34. c4
{[%clk 00:25:47]} {[%emt 00:02:25]} a5+ {[%clk 00:04:33]} {[%emt 00:00:55]} 35.
Kxa5 {[%clk 00:26:06]} {[%emt 00:00:10]} Bxc4 {[%clk 00:04:54]} {[%emt
00:00:09]} 36. c6 {[%clk 00:21:48]} {[%emt 00:04:48]} e5 {[%clk 00:01:33]}
{[%emt 00:03:52]} 37. Nf5 {[%clk 00:18:42]} {[%emt 00:03:34]} Kc7 {[%clk
00:01:50]} {[%emt 00:00:14]} 38. Rxf6 {[%clk 00:18:34]} {[%emt 00:00:37]} e4
{[%clk 00:01:47]} {[%emt 00:00:34]} 39. Kb4 {[%clk 00:18:41]} {[%emt 00:00:23]}
Ba2 {[%clk 00:01:37]} {[%emt 00:00:41]} 40. Kc5 {[%clk 00:18:52]} {[%emt
00:00:18]} Rd8 {[%clk 00:01:02]} {[%emt 00:01:06]} 41. Nd6 {[%clk 00:17:06]}
{[%emt 00:02:13]} e3 {[%clk 00:01:03]} {[%emt 00:00:32]} 42. Nb5+ {[%clk
00:15:00]} {[%emt 00:02:36]} Kc8 {[%clk 00:01:28]} {[%emt 00:00:05]} 43. Nc3
{[%clk 00:13:20]} {[%emt 00:02:10]} Rd2 {[%clk 00:01:44]} {[%emt 00:00:15]} 44.
Nxa2 {[%clk 00:11:34]} {[%emt 00:02:16]} e2 {[%clk 00:01:41]} {[%emt 00:00:33]}
45. Rxf7 {[%clk 00:08:49]} {[%emt 00:03:15]} e1=Q {[%clk 00:02:05]} {[%emt
00:00:06]} 46. Rf8+ {[%clk 00:05:02]} {[%emt 00:04:17]} Kc7 {[%clk 00:02:21]}
{[%emt 00:00:14]} 47. Rf7+ {[%clk 00:04:57]} {[%emt 00:00:34]} Kc8 {[%clk
00:02:41]} {[%emt 00:00:10]} 48. Nb4 {[%clk 00:04:55]} {[%emt 00:00:32]} Qe3+
{[%clk 00:02:17]} {[%emt 00:00:55]} 49. Kb5 {[%clk 00:04:56]} {[%emt 00:00:29]}
Qe2+ {[%clk 00:02:27]} {[%emt 00:00:20]} 50. Kb6 {[%clk 00:04:55]} {[%emt
00:00:31]} Qe3+ {[%clk 00:02:54]} {[%emt 00:00:03]} 51. Kb5 {[%clk 00:04:51]}
{[%emt 00:00:33]} Rd8 {[%clk 00:01:55]} {[%emt 00:01:29]} 52. Rg7 {[%clk
00:01:53]} {[%emt 00:03:27]} Qb3 {[%clk 00:01:42]} {[%emt 00:00:45]} 53. Rg5
{[%clk 00:01:33]} {[%emt 00:00:49]} Rd4 {[%clk 00:01:47]} {[%emt 00:00:26]} 0-1

[Event "32nd NATO Chess Championship"]
[Site "Tartu, Estonia"]
[Date "2022.06.27"]
[Round "1.28"]
[White "Hernandez, Albert"]
[Black "Steen, Kris"]
[Result "1-0"]
[TimeControl "90 min + 30 sec increment from move one"]
[WhiteFideId "2075407"]
[BlackFideId "264571"]
[WhiteElo "2012"]
[BlackElo "1735"]

1. d4 {[%clk 01:30:54]} {[%emt 00:00:05]} Nf6 {[%clk 01:30:49]} {[%emt
00:00:11]} 2. Nf3 {[%emt 00:00:13]} d5 {[%clk 01:31:09]} {[%emt 00:00:06]} 3.
g3 {[%clk 01:31:37]} {[%emt 00:00:09]} e6 {[%clk 01:31:12]} {[%emt 00:00:27]} 4.
Bg2 {[%clk 01:32:00]} {[%emt 00:00:06]} c6 {[%clk 01:30:35]} {[%emt 00:01:08]}
5. O-O {[%clk 01:32:20]} {[%emt 00:00:09]} g6 {[%clk 01:30:54]} {[%emt
00:00:10]} 6. c4 {[%clk 01:32:02]} {[%emt 00:00:48]} Bg7 {[%clk 01:31:14]}
{[%emt 00:00:10]} 7. Nc3 {[%clk 01:32:16]} {[%emt 00:00:16]} O-O {[%clk
01:31:35]} {[%emt 00:00:10]} 8. Bg5 {[%clk 01:32:20]} {[%emt 00:00:25]} Nbd7
{[%clk 01:31:29]} {[%emt 00:00:36]} 9. e4 {[%clk 01:31:07]} {[%emt 00:01:43]}
dxe4 {[%clk 01:31:33]} {[%emt 00:00:26]} 10. Nxe4 {[%clk 01:31:26]} {[%emt
00:00:11]} Qc7 {[%clk 01:26:14]} {[%emt 00:05:50]} 11. Bf4 {[%emt 00:08:10]}
Qb6 {[%clk 01:22:28]} {[%emt 00:00:35]} 12. Nxf6+ {[%clk 01:26:34]} {[%emt
00:01:23]} Bxf6 {[%clk 01:22:01]} {[%emt 00:00:57]} 13. Bd6 {[%clk 01:25:52]}
{[%emt 00:01:12]} Re8 {[%clk 01:21:42]} {[%emt 00:00:49]} 14. b4 {[%clk
01:23:41]} {[%emt 00:02:41]} a5 {[%clk 01:09:26]} {[%emt 00:12:47]} 15. a3
{[%clk 01:20:13]} {[%emt 00:03:57]} axb4 {[%clk 01:04:37]} {[%emt 00:05:19]} 16.
axb4 {[%clk 01:20:06]} {[%emt 00:00:37]} Rxa1 {[%clk 01:03:25]} {[%emt
00:01:42]} 17. Qxa1 {[%clk 01:20:25]} {[%emt 00:00:11]} Bg7 {[%clk 00:59:06]}
{[%emt 00:04:49]} 18. Rb1 {[%clk 01:19:36]} {[%emt 00:01:18]} Qd8 {[%clk
00:53:05]} {[%emt 00:06:31]} 19. c5 {[%clk 01:16:32]} {[%emt 00:03:34]} Nf6
{[%clk 00:51:29]} {[%emt 00:02:07]} 20. b5 {[%clk 01:15:10]} {[%emt 00:01:53]}
Bd7 {[%clk 00:51:17]} {[%emt 00:00:43]} 21. Qa7 {[%clk 01:12:14]} {[%emt
00:03:25]} Nd5 {[%emt 00:20:36]} 22. Ne5 {[%clk 00:59:14]} {[%emt 00:05:57]}
Bxe5 {[%clk 00:32:55]} {[%emt 00:06:18]} 23. dxe5 {[%clk 00:58:18]} {[%emt
00:01:26]} Qa8 {[%clk 00:27:09]} {[%emt 00:06:17]} 24. Ra1 {[%clk 00:56:19]}
{[%emt 00:02:29]} Qxa7 {[%clk 00:27:20]} {[%emt 00:00:19]} 25. Rxa7 {[%clk
00:56:41]} {[%emt 00:00:08]} cxb5 {[%clk 00:27:06]} {[%emt 00:00:45]} 26. Rxb7
{[%clk 00:49:24]} {[%emt 00:07:47]} Bc6 {[%clk 00:27:28]} {[%emt 00:00:07]} 27.
Bxd5 {[%clk 00:47:34]} {[%emt 00:02:20]} Bxd5 {[%clk 00:25:09]} {[%emt
00:02:49]} 28. Rxb5 {[%clk 00:47:35]} {[%emt 00:00:29]} h5 {[%clk 00:24:48]}
{[%emt 00:00:51]} 29. Rb6 {[%clk 00:45:33]} {[%emt 00:02:32]} Rc8 {[%clk
00:24:59]} {[%emt 00:00:19]} 30. Kf1 {[%clk 00:45:37]} {[%emt 00:00:25]} Kg7
{[%clk 00:21:51]} {[%emt 00:03:39]} 31. Ke2 {[%clk 00:45:22]} {[%emt 00:00:45]}
Kh6 {[%clk 00:15:59]} {[%emt 00:06:22]} 32. Ke3 {[%clk 00:39:56]} {[%emt
00:05:56]} Kh7 {[%clk 00:13:40]} {[%emt 00:02:49]} 33. Kf4 {[%clk 00:38:20]}
{[%emt 00:02:06]} Kh6 {[%clk 00:11:29]} {[%emt 00:02:41]} 34. h4 {[%clk
00:38:06]} {[%emt 00:00:44]} Kh7 {[%clk 00:11:36]} {[%emt 00:00:24]} 35. Kg5
{[%clk 00:35:36]} {[%emt 00:03:00]} Kg7 {[%clk 00:12:04]} {[%emt 00:00:02]} 36.
Be7 {[%clk 00:35:49]} {[%emt 00:00:17]} Bf3 {[%clk 00:11:41]} {[%emt 00:00:54]}
37. Rd6 {[%clk 00:34:51]} {[%emt 00:01:27]} Rxc5 {[%clk 00:10:07]} {[%emt
00:02:04]} 38. Bf6+ {[%clk 00:34:53]} {[%emt 00:00:29]} 1-0

[Event "32nd NATO Chess Championship"]
[Site "Tartu, Estonia"]
[Date "2022.06.27"]
[Round "1.29"]
[White "Papler, Peter"]
[Black "Nilsson, Erik"]
[Result "1/2-1/2"]
[TimeControl "90 min + 30 sec increment from move one"]
[WhiteFideId "14609770"]
[BlackFideId "1409000"]
[WhiteElo "1714"]
[BlackElo "2002"]

1. d4 Nf6 2. Bf4 g6 3. Nc3 d5 4. e3 Bg7 5. Nf3 O-O 6. Bd3 Nbd7 7. Nb5 Ne8 8.
Nc3 Ndf6 9. Ne5 Nd6 10. h4 Nde4 11. Qf3 c6 12. Nxe4 dxe4 13. Bxe4 Nxe4 14. Qxe4
Bf5 15. Qf3 Bxc2 16. O-O f6 17. Nc4 Bd3 18. Rfc1 Qd5 19. Qxd5+ cxd5 20. Na5 b6
21. Nc6 Rfe8 1/2-1/2

[Event "32nd NATO Chess Championship"]
[Site "Tartu, Estonia"]
[Date "2022.06.27"]
[Round "1.30"]
[White "Cirkvencic, Franci"]
[Black "Coulon, Dominic"]
[Result "1-0"]
[TimeControl "90 min + 30 sec increment from move one"]
[WhiteFideId "14600528"]
[BlackFideId "2621932"]
[WhiteElo "2000"]
[BlackElo "1701"]

1. Nf3 d6 2. d4 Nf6 3. g3 c6 4. Bg2 g6 5. c4 Bg7 6. Nc3 O-O 7. O-O a5 8. e4 Qc7
9. h3 e5 10. Be3 Na6 11. Qd2 Re8 12. Rfe1 Bd7 13. Rad1 Rad8 14. a3 Be6 15. d5
Bc8 16. Rc1 Nc5 17. Qc2 Ncd7 18. b4 axb4 19. axb4 h6 20. Nd2 g5 21. Nb3 Nf8 22.
f3 Nh5 23. Qf2 Qe7 24. Bb6 Rd7 25. c5 Qf6 26. Red1 Ng6 27. b5 cxd5 28. Nxd5 Qe6
29. c6 bxc6 30. bxc6 Rde7 31. Bf1 Nf6 32. Nxe7+ Nxe7 33. Na5 h5 34. Bc4 Qxh3 35.
Qg2 h4 36. Qxh3 Bxh3 37. gxh4 gxh4 38. Rxd6 Nc8 39. Rd8 Nxb6 40. Rxe8+ Nxe8 41.
Rb1 Nc8 42. Kh2 Be6 43. Bxe6 fxe6 44. Rb8 Ncd6 {[%clk 00:00:00]} 45. Nb7 {[%clk
01:30:36]} 1-0

[Event "32nd NATO Chess Championship"]
[Site "Tartu, Estonia"]
[Date "2022.06.27"]
[Round "1.31"]
[White "Stuhr, Finn"]
[Black "Duren, Andrew"]
[Result "0-1"]
[TimeControl "90 min + 30 sec increment from move one"]
[WhiteFideId "1400789"]
[BlackFideId "2019663"]
[WhiteElo "1686"]
[BlackElo "1997"]

1. e4 {[%clk 01:30:51]} {[%emt 00:00:07]} c5 {[%clk 01:30:50]} {[%emt
00:00:11]} 2. Bc4 {[%clk 01:30:59]} {[%emt 00:00:21]} g6 {[%clk 01:30:53]}
{[%emt 00:00:28]} 3. Nf3 {[%clk 01:30:18]} {[%emt 00:01:11]} Bg7 {[%clk
01:30:58]} {[%emt 00:00:25]} 4. Qe2 {[%clk 01:29:51]} {[%emt 00:00:57]} e6
{[%clk 01:29:51]} {[%emt 00:01:37]} 5. d3 {[%clk 01:24:36]} {[%emt 00:05:44]}
Ne7 {[%clk 01:28:37]} {[%emt 00:01:44]} 6. Bb3 {[%clk 01:21:46]} {[%emt
00:03:20]} Nbc6 {[%clk 01:27:23]} {[%emt 00:01:44]} 7. c3 {[%clk 01:21:52]}
{[%emt 00:00:23]} O-O {[%clk 01:27:18]} {[%emt 00:00:36]} 8. O-O {[%emt
00:02:40]} d5 {[%clk 01:24:23]} {[%emt 00:01:26]} 9. Bf4 {[%clk 01:13:42]}
{[%emt 00:08:27]} b5 {[%clk 01:12:26]} {[%emt 00:12:29]} 10. Rd1 {[%clk
01:11:15]} {[%emt 00:02:55]} Ba6 {[%clk 01:05:33]} {[%emt 00:07:25]} 11. a3
{[%clk 01:07:49]} {[%emt 00:03:56]} c4 {[%clk 00:58:24]} {[%emt 00:07:39]} 12.
Bc2 {[%clk 01:07:39]} {[%emt 00:00:39]} Qb6 {[%clk 00:55:40]} {[%emt 00:03:14]}
13. d4 {[%clk 01:06:26]} {[%emt 00:01:42]} dxe4 {[%clk 00:53:57]} {[%emt
00:02:14]} 14. Bxe4 {[%clk 01:05:29]} {[%emt 00:01:27]} Rfd8 {[%clk 00:52:38]}
{[%emt 00:01:49]} 15. Be3 {[%clk 01:04:37]} {[%emt 00:01:21]} Nd5 {[%clk
00:52:50]} {[%emt 00:00:18]} 16. Bc1 {[%clk 01:00:50]} {[%emt 00:04:17]} Bb7
{[%clk 00:51:39]} {[%emt 00:01:42]} 17. h4 {[%clk 01:00:51]} {[%emt 00:00:29]}
Nf6 {[%clk 00:50:38]} {[%emt 00:01:31]} 18. Bc2 {[%clk 00:55:40]} {[%emt
00:05:42]} Rac8 {[%clk 00:46:12]} {[%emt 00:04:57]} 19. Nbd2 {[%emt 00:01:26]}
Qc7 {[%clk 00:44:23]} {[%emt 00:02:03]} 20. Ne4 {[%clk 00:54:19]} {[%emt
00:01:09]} Nxe4 {[%clk 00:43:51]} {[%emt 00:01:03]} 21. Bxe4 {[%clk 00:53:38]}
{[%emt 00:01:11]} Ne7 {[%clk 00:40:35]} {[%emt 00:03:47]} 22. Bc2 {[%clk
00:53:21]} {[%emt 00:00:46]} Nf5 {[%clk 00:39:01]} {[%emt 00:02:05]} 23. h5
{[%clk 00:51:23]} {[%emt 00:02:28]} a5 {[%clk 00:38:12]} {[%emt 00:01:20]} 24.
Ng5 {[%clk 00:49:05]} {[%emt 00:02:47]} b4 {[%clk 00:35:04]} {[%emt 00:03:39]}
25. axb4 {[%clk 00:45:58]} {[%emt 00:03:37]} axb4 {[%clk 00:35:24]} {[%emt
00:00:10]} 26. Re1 {[%clk 00:42:40]} {[%emt 00:03:47]} bxc3 {[%clk 00:34:03]}
{[%emt 00:01:52]} 27. bxc3 {[%clk 00:42:58]} {[%emt 00:00:13]} Bd5 {[%clk
00:33:31]} {[%emt 00:01:00]} 28. Be4 {[%clk 00:35:55]} {[%emt 00:07:34]} Ne7
{[%clk 00:29:10]} {[%emt 00:04:52]} 29. Qf3 {[%clk 00:32:14]} {[%emt 00:04:10]}
Rf8 {[%clk 00:29:08]} {[%emt 00:00:33]} 30. Qh3 {[%clk 00:27:38]} {[%emt
00:05:04]} Bxe4 {[%clk 00:28:42]} {[%emt 00:00:58]} 31. Rxe4 {[%clk 00:27:29]}
{[%emt 00:00:39]} gxh5 {[%clk 00:27:18]} {[%emt 00:01:54]} 32. Qxh5 {[%clk
00:25:09]} {[%emt 00:02:50]} h6 {[%clk 00:27:40]} {[%emt 00:00:08]} 33. Nf3
{[%clk 00:22:13]} {[%emt 00:03:25]} Ra8 {[%clk 00:26:40]} {[%emt 00:01:31]} 34.
Rxa8 {[%clk 00:21:35]} {[%emt 00:01:08]} Rxa8 {[%clk 00:27:08]} {[%emt
00:00:02]} 35. Bf4 {[%clk 00:21:44]} {[%emt 00:00:20]} Ra1+ {[%clk 00:26:45]}
{[%emt 00:00:52]} 36. Kh2 {[%clk 00:22:05]} {[%emt 00:00:10]} Qb7 {[%clk
00:24:53]} {[%emt 00:02:23]} 37. Re2 {[%clk 00:19:40]} {[%emt 00:02:54]} Nf5
{[%clk 00:22:51]} {[%emt 00:02:32]} 38. Ne5 {[%clk 00:15:41]} {[%emt 00:04:29]}
Rf1 {[%clk 00:19:16]} {[%emt 00:04:06]} 39. Bd2 {[%clk 00:12:28]} {[%emt
00:03:43]} Bxe5+ {[%clk 00:18:15]} {[%emt 00:01:31]} 40. Rxe5 {[%clk 00:11:43]}
{[%emt 00:01:14]} Qb1 {[%clk 00:17:30]} {[%emt 00:01:15]} 41. Qg4+ {[%clk
00:11:17]} {[%emt 00:00:56]} Kh7 {[%clk 00:17:41]} {[%emt 00:00:19]} 42. g3
{[%clk 00:09:28]} {[%emt 00:02:20]} Rxf2+ {[%clk 00:17:24]} {[%emt 00:00:47]}
0-1